bitfinex/quotes_ETHUSD_20240823
["timestamp","ask_amount","ask_price","bid_price","bid_amount"]
[1724424619999,3.77574,2648.5,2646.8,6.77805]
[1724424620000,3.7763,2648.1,2646.9,3.77786]
[1724424620203,3.776,2648.3,2647.1,3.7777]
[1724424620405,3.77587,2648.4,2647.0,3.77785]
[1724424620642,0.0944155,2648.3,2644.9,3.7808]
[1724424620764,3.77725,2647.5,2646.1,7.19862]
[1724424620966,3.77744,2647.3,2646.0,3.77928]
[1724424621180,0.09444482,2647.5,2645.4,7.19952]
[1724424621181,3.77718,2647.5,2646.3,3.77881]
[1724424621424,3.495,2647.6,2645.4,3.4195]
[1724424621641,3.77806,2646.9,2645.8,3.77954]
[1724424621766,0.09444802,2647.5,2645.4,3.78004]
[1724424621767,0.377806,2646.8,2645.4,3.78004]
[1724424621972,3.77814,2646.8,2645.7,3.77971]
[1724424622224,3.77833,2646.7,2644.9,3.2456]
[1724424622421,3.77814,2646.8,2644.9,3.2456]
[1724424622721,3.77747,2647.3,2646.2,3.77899]
[1724424623018,3.8742,2647.6,2645.9,3.77934]
[1724424623019,3.495,2647.6,2645.9,3.77934]
[1724424623331,0.59257167,2647.7,2646.9,3.77795]
[1724424623531,3.77632,2648.1,2646.9,3.77793]
[1724424623697,3.77686,2647.7,2646.7,3.77814]
[1724424623871,3.79803531,2648.2,2646.3,3.77883]
[1724424624076,3.77686,2647.8,2646.5,3.77855]
[1724424624272,3.7764,2648.1,2646.8,3.77812]
[1724424624519,0.59243531,2648.2,2647.3,3.77731]
[1724424624674,0.59243531,2648.2,2647.6,3.77698]
[1724424624874,0.59243531,2648.2,2646.9,3.0]
[1724424625084,3.87069225,2648.1,2646.3,3.3608]
[1724424625312,3.77676,2647.8,2646.6,3.7784]
[1724424625608,0.44631276,2648.0,2646.0,0.721084]
[1724424625809,3.4201,2647.6,2646.4,3.77869]
[1724424626012,0.09444097,2647.5,2645.6,3.5234]
[1724424626216,3.4201,2647.6,2645.6,3.5234]
[1724424626374,0.44631276,2648.0,2646.4,3.77863]
[1724424626587,7.78881531,2648.2,2647.6,3.77686]
[1724424626588,0.59243531,2648.2,2647.6,3.77686]
[1724424626799,0.59243531,2648.2,2646.8,3.77813]
[1724424627114,0.59243531,2648.2,2646.6,3.5234]
[1724424627319,0.59243531,2648.2,2647.2,3.77746]
[1724424627518,0.59243531,2648.2,2646.8,3.77811]
[1724424627707,3.8827692,2648.8,2646.8,3.77811]
[1724424627708,7.6580792,2648.8,2647.7,3.77683]
[1724424628016,0.4626692,2648.8,2647.8,3.77671]
[1724424628335,0.4626692,2648.8,2646.9,0.677811]
[1724424628336,3.77534,2648.8,2646.9,0.677811]
[1724424628549,4.36727129,2649.0,2647.6,3.77699]
[1724424628849,3.77584,2648.5,2647.5,3.77708]
[1724424629120,3.77584,2648.5,2647.4,3.77724]
[1724424629121,0.59223129,2649.0,2648.2,3.77603]
[1724424629276,0.59223129,2649.0,2647.0,7.18635]
[1724424629277,3.776,2648.3,2647.0,7.18635]
[1724424629476,0.09437931,2648.9,2647.2,3.77756]
[1724424629477,0.3776,2648.2,2647.2,3.77756]
[1724424629692,3.77629,2648.1,2647.1,3.7777]
[1724424629877,3.77641,2648.1,2646.8,3.77812]
[1724424630099,3.77576,2648.5,2647.2,3.77756]
[1724424630327,0.59223129,2649.0,2648.0,3.77637]
[1724424630540,0.59223129,2649.0,2648.1,3.85145933]
[1724424630681,1.02894042,2649.0,2648.1,3.77626]
[1724424630882,1.02894042,2649.0,2647.9,3.77644]
[1724424631127,1.02894042,2649.0,2647.5,3.4085]
[1724424631326,1.02894042,2649.0,2647.4,3.77728]
[1724424631327,3.776,2648.4,2647.4,3.77728]
[1724424631500,3.77633,2648.1,2646.0,3.4386]
[1724424631700,3.2371,2648.2,2647.2,3.77744]
[1724424631900,3.2371,2648.2,2647.0,3.77785]
[1724424632104,3.2371,2648.2,2646.0,3.4386]
[1724424632348,3.77593,2648.4,2646.0,3.77916]
[1724424632349,3.77796,2647.0,2646.0,3.77916]
[1724424632483,7.26344,2647.3,2645.7,3.77958]
[1724424632684,3.77888,2646.3,2645.3,3.78024]
[1724424632911,3.77888,2646.3,2645.1,3.78055]
[1724424632912,3.77833,2646.7,2645.4,3.85551616]
[1724424633126,3.77833,2646.7,2645.5,3.77994]
[1724424633327,0.377833,2646.6,2645.0,3.2347]
[1724424633480,4.156263,2646.6,2645.2,3.7804]
[1724424633679,4.156263,2646.6,2645.0,3.2347]
[1724424633680,4.156273,2646.6,2645.0,3.2347]
[1724424633918,0.377833,2646.6,2645.1,0.07543406]
[1724424634119,0.377833,2646.6,2645.0,3.2347]
[1724424634120,0.3792,2646.7,2645.2,0.07540054]
[1724424634323,3.4859,2647.3,2646.3,3.77874]
[1724424634529,3.4859,2647.3,2645.9,3.77932]
[1724424634684,3.4859,2647.3,2644.3,0.005]
[1724424634685,3.77828,2646.8,2645.4,3.78012]
[1724424634890,3.77892,2646.3,2645.3,3.78024]
[1724424635197,4.03378569,2646.9,2645.7,3.77966]
[1724424635416,3.77689,2647.7,2646.6,3.77837]
[1724424635625,3.4859,2647.9,2646.3,3.77871]
[1724424635788,3.77688,2647.7,2646.1,3.77906]
[1724424635986,3.77674,2647.8,2646.8,3.77813]
[1724424636186,3.8651,2647.9,2645.9,3.2347]
[1724424636187,4.541074,2647.7,2646.6,3.77833]
[1724424636386,3.8651,2647.9,2645.9,3.2347]
[1724424636387,3.8651,2647.9,2646.9,3.77788]
[1724424636627,3.8651,2647.9,2646.8,3.77811]
[1724424636797,3.4859,2647.9,2646.1,3.0]
[1724424636997,3.4859,2647.9,2645.9,3.70848181]
[1724424636998,3.77726,2647.5,2646.4,3.77865]
[1724424637196,0.42253348,2648.4,2646.6,3.77838]
[1724424637197,3.4904,2648.4,2646.6,3.77838]
[1724424637398,7.26631,2648.4,2647.4,3.77719]
[1724424637599,7.26631,2648.4,2647.6,3.7769]
[1724424637600,0.0045,2648.4,2647.6,3.7769]
[1724424637804,0.0045,2648.4,2647.9,3.77657]
[1724424638012,0.0045,2648.4,2647.0,3.77777]
[1724424638215,0.0045,2648.4,2648.3,7.552]
[1724424638397,0.0045,2648.4,2648.3,8.3072]
[1724424638612,0.0045,2648.4,2647.5,0.05]
[1724424638613,0.0045,2648.4,2648.2,6.96324]
[1724424638942,0.0045,2648.4,2648.3,7.552]
[1724424639295,3.772,2651.2,2648.8,0.05]
[1724424639619,3.772,2651.2,2647.5,3.1871]
[1724424639620,3.77427,2649.6,2649.0,0.05]
[1724424639820,3.77442,2649.5,2649.2,0.05]
[1724424640019,3.77296,2650.5,2647.1,3.77768]
[1724424640020,3.77418,2649.6,2648.8,0.05]
[1724424640241,3.77418,2649.6,2647.8,3.77669]
[1724424640242,0.59210714,2649.9,2649.4,0.05]
[1724424640412,3.7733,2650.2,2649.6,0.05]
[1724424640760,3.77404,2649.7,2649.0,0.05]
[1724424640897,3.77404,2649.7,2648.7,0.05]
[1724424640898,3.77404,2649.7,2649.6,0.05]
[1724424641230,0.59205102,2650.3,2648.7,0.05]
[1724424641231,3.77419,2649.6,2649.0,0.05]
[1724424641433,3.77374,2649.9,2649.7,0.05]
[1724424641638,4.151114,2649.9,2649.5,0.05]
[1724424641793,3.77374,2649.9,2649.1,0.05]
[1724424641995,0.3792,2650.1,2648.8,0.05]
[1724424642346,3.77472,2649.2,2648.5,0.05]
[1724424642547,3.8848,2649.7,2648.5,0.05]
[1724424642548,3.7744,2649.5,2648.8,0.05]
[1724424642835,3.77415,2649.6,2649.3,0.05]
[1724424643235,3.7743,2649.5,2649.0,0.05]
[1724424643440,3.7743,2649.5,2648.0,3.1871]
[1724424643441,0.59210806,2649.8,2649.4,0.05]
[1724424643598,3.77361,2650.0,2649.4,0.05]
[1724424643794,0.64892045,2649.9,2649.4,0.05]
[1724424644000,0.3792,2649.8,2649.0,0.05]
[1724424644300,0.3792,2649.8,2648.4,0.05]
[1724424644301,3.77472,2649.2,2648.4,0.05]
[1724424644518,4.152192,2649.2,2648.4,0.1]
[1724424644705,3.7749,2649.1,2648.6,0.05]
[1724424644958,4.152192,2649.2,2648.6,0.05]
[1724424644959,0.377472,2649.2,2648.6,0.05]
[1724424645154,3.77488,2649.1,2648.6,0.05]
[1724424645372,0.377472,2649.2,2648.6,0.05]
[1724424645588,0.3792,2649.4,2648.7,0.05]
[1724424645882,0.3792,2649.4,2647.6,3.7182]
[1724424645883,0.97116706,2649.9,2649.4,0.05]
[1724424646108,0.40295062,2649.9,2649.4,0.05]
[1724424646366,3.77256,2650.8,2649.3,0.05]
[1724424646367,3.77245,2650.8,2649.3,0.05]
[1724424646532,3.77335,2650.2,2649.4,0.05]
[1724424646746,0.59182831,2650.2,2649.6,0.05]
[1724424646950,0.59182831,2650.2,2649.6,0.1]
[1724424647235,0.3792,2650.3,2649.6,0.05]
[1724424647526,3.77381,2649.9,2649.2,0.05]
[1724424647645,3.77413,2649.7,2649.2,0.05]
[1724424647835,0.415301,2649.9,2649.2,0.05]
[1724424648175,3.77395,2649.8,2649.4,0.05]
[1724424648381,4.15285,2650.0,2649.4,0.05]
[1724424648587,0.3792,2650.3,2650.0,0.05]
[1724424648730,3.9523,2651.5,2650.2,0.05]
[1724424648924,3.9523,2651.5,2650.0,0.05]
[1724424649158,3.77288,2650.5,2650.0,0.05]
[1724424649325,3.7734,2650.2,2649.5,0.05]
[1724424649527,3.7734,2650.2,2649.9,0.05]
[1724424649824,0.05695339,2650.1,2649.2,0.05]
[1724424650025,3.77455,2649.4,2648.5,0.05]
[1724424650264,3.77514,2649.0,2648.4,0.05]
[1724424650489,3.8526,2649.7,2646.7,0.377838]
[1724424650490,0.3792,2649.6,2648.1,0.05]
[1724424650700,4.2931,2648.8,2647.3,0.05]
[1724424650896,4.2931,2648.8,2647.1,0.05]
[1724424650897,3.77702,2647.6,2647.1,0.05]
[1724424651182,3.77702,2647.6,2646.7,0.377838]
[1724424651183,3.8375,2647.9,2646.8,0.05]
[1724424651382,3.77761,2647.2,2646.6,0.05]
[1724424651543,3.7773,2647.4,2646.6,0.05]
[1724424651742,3.77706,2647.6,2646.8,0.1]
[1724424652058,3.7759,2648.4,2647.7,0.05]
[1724424652371,3.77725,2647.5,2646.9,0.05]
[1724424652556,3.77725,2647.5,2646.7,0.05]
[1724424652740,3.7197,2648.1,2646.6,0.05]
[1724424652741,3.77788,2647.0,2646.6,0.05]
[1724424652946,3.77694,2647.7,2646.9,0.1]
[1724424653265,0.74896156,2648.6,2645.9,3.7919]
[1724424653266,3.77562,2648.6,2647.7,0.05]
[1724424653442,0.749532,2648.5,2647.7,0.05]
[1724424653637,3.7197,2648.7,2648.0,0.05]
[1724424653638,0.3792,2648.6,2648.0,0.05]
[1724424653857,3.77657,2647.9,2647.8,0.05]
[1724424654037,3.77615,2648.2,2647.8,0.05]
[1724424654239,3.77603,2648.3,2648.1,0.05]
[1724424654437,4.15516,2648.4,2647.9,0.1]
[1724424654645,4.15452,2648.8,2648.3,0.05]
[1724424654841,0.3792,2648.7,2647.9,0.05]
[1724424655059,0.3792,2648.7,2647.6,3.6939]
[1724424655060,4.15474,2648.7,2648.5,0.05]
[1724424655256,3.77547,2648.7,2648.4,0.05]
[1724424655462,3.8669,2649.3,2648.5,0.05]
[1724424655646,3.77543,2648.7,2648.2,0.05]
[1724424656045,0.3792,2649.1,2648.6,0.05]
[1724424656046,3.77502,2649.0,2648.6,0.05]
[1724424656267,3.77502,2649.0,2648.5,0.05]
[1724424656464,0.3792,2649.1,2648.5,0.05]
[1724424656465,4.15407,2649.1,2648.7,0.05]
[1724424656843,3.77504,2649.0,2648.7,0.05]
[1724424657047,0.3792,2649.4,2648.5,0.1]
[1724424657308,4.15411,2649.1,2648.7,0.05]
[1724424657427,4.55596156,2649.8,2648.7,3.8319]
[1724424657428,1.87800063,2649.8,2648.7,3.8319]
[1724424657625,3.77614,2648.3,2648.1,0.05]
[1724424657858,3.77435,2649.5,2647.6,3.8319]
[1724424657859,3.77511,2649.0,2647.7,0.05]
[1724424658070,3.77642,2648.1,2647.7,0.05]
[1724424658242,3.77604,2648.3,2647.7,0.05]
[1724424658447,3.77559,2648.6,2647.8,0.05]
[1724424658448,3.77655,2648.0,2647.8,0.05]
[1724424658630,6.77579,2648.5,2647.8,0.05]
[1724424658836,3.77657,2647.9,2647.6,0.05]
[1724424659233,0.3792,2648.1,2647.7,0.05]
[1724424659433,4.52485156,2648.4,2648.3,0.05]
[1724424659688,3.77586,2648.4,2648.3,0.05]
[1724424659886,1.12903907,2648.8,2646.9,3.6775]
[1724424659887,1.87800063,2648.7,2647.6,0.05]
[1724424660176,3.77629,2648.1,2648.0,0.05]
[1724424660358,3.77629,2648.1,2646.9,3.6775]
[1724424660359,3.77729,2647.4,2647.3,0.05]
[1724424660673,3.77643,2648.0,2646.5,0.05]
[1724424660674,1.89555698,2647.7,2646.5,0.05]
[1724424660873,3.77885,2646.4,2646.0,0.1]
[1724424661172,3.77917,2646.1,2645.8,0.05]
[1724424661356,1.50823907,2646.7,2645.0,0.1]
[1724424661357,0.3792,2646.3,2645.0,0.1]
[1724424661540,3.77963,2645.8,2645.6,0.05]
[1724424661740,3.78009,2645.5,2645.0,0.1]
[1724424661952,0.76651791,2645.9,2644.7,0.1283032]
[1724424662148,3.781,2644.8,2644.7,0.1283032]
[1724424662530,7.562,2644.8,2644.7,0.1283032]
[1724424662734,8.8682,2644.8,2644.7,0.1283032]
[1724424662947,8.112,2644.8,2644.7,0.1283032]
[1724424663187,16.64511791,2644.8,2644.7,3.2e-06]
[1724424663367,15.8786,2644.8,2644.7,3.2e-06]
[1724424663581,7.56314,2644.4,2644.3,0.005]
[1724424663782,7.56314,2644.4,2644.3,1e-05]
[1724424663783,14.89471,2644.4,2644.3,1e-05]
[1724424664087,3.78282,2643.6,2643.3,0.05]
[1724424664380,3.78282,2643.6,2643.4,0.05]
[1724424664582,0.76217153,2644.1,2643.6,0.05]
[1724424664902,2.49380477,2644.4,2643.3,0.05]
[1724424664903,0.76217153,2644.4,2644.0,0.07527328]
[1724424665034,0.76217153,2644.5,2644.2,0.07527328]
[1724424665254,3.78077,2645.0,2641.5,3.78566]
[1724424665255,3.8292,2644.4,2641.5,3.78566]
[1724424665550,3.8292,2644.4,2641.2,3.78606]
[1724424665551,3.78317,2643.3,2642.0,3.9132832]
[1724424665752,3.7832,2643.3,2642.0,0.1283032]
[1724424666171,3.78386,2642.8,2642.0,0.1283032]
[1724424666348,3.78359,2643.0,2642.0,0.1283032]
[1724424666762,3.9562,2643.4,2642.0,0.1283032]
[1724424666947,3.78299,2643.5,2642.2,3.78466]
[1724424667153,3.78299,2643.5,2642.0,0.1283032]
[1724424667154,3.78299,2643.5,2642.3,0.378466]
[1724424667351,3.78358,2643.0,2642.0,0.1283032]
[1724424667565,3.78281,2643.6,2642.0,0.1283032]
[1724424667788,6.78244,2643.8,2642.1,3.78472]
[1724424667789,3.78307,2643.4,2642.1,3.78472]
[1724424668097,3.0,2643.3,2642.0,0.1283032]
[1724424668304,3.78407,2642.7,2642.0,0.1283032]
[1724424668604,3.78318,2643.3,2642.0,3.9131632]
[1724424668799,3.78289,2643.5,2642.0,3.9131632]
[1724424668938,3.78245,2643.8,2642.5,3.7211]
[1724424669140,0.55,2643.7,2642.5,3.7211]
[1724424669362,4.92535149,2644.1,2643.0,3.78344]
[1724424669576,4.92535149,2644.1,2643.2,3.78328]
[1724424669577,1.14332149,2644.1,2643.2,3.78328]
[1724424669747,1.14332149,2644.1,2643.4,3.78294]
[1724424669949,1.14332149,2644.1,2643.5,0.45393461]
[1724424670155,1.14332149,2644.1,2643.5,5.819894]
[1724424670557,1.14332149,2644.1,2644.0,3.78214]
[1724424671151,1.14332149,2644.1,2643.5,5.819894]
[1724424671382,1.14332149,2644.1,2644.0,3.78214]
[1724424671542,1.14332149,2644.1,2643.5,5.819894]
[1724424671747,4.92534149,2644.1,2642.9,9.59941]
[1724424671972,4.92534149,2644.1,2643.0,3.78355]
[1724424672171,3.78315,2643.3,2642.4,5.8157]
[1724424672342,3.78327,2643.3,2642.4,5.8157]
[1724424672688,3.78249,2643.8,2642.5,3.85991095]
[1724424672903,9.4511,2643.9,2642.5,3.85991095]
[1724424672904,3.7824,2643.9,2642.6,0.9675611]
[1724424673195,3.78196,2644.2,2642.9,3.78358]
[1724424673369,3.0,2644.3,2643.0,3.78355]
[1724424673370,4.33212,2644.1,2643.0,3.78355]
[1724424673571,4.33212,2644.1,2642.1,0.39131632]
[1724424673572,3.0,2644.0,2642.1,0.39131632]
[1724424673893,3.0,2644.0,2640.3,9.46331677]
[1724424673894,3.78376,2642.9,2642.0,5.6260032]
[1724424674188,3.78435,2642.5,2642.0,0.1283032]
[1724424674354,3.78385,2642.9,2642.0,0.1283032]
[1724424674555,0.55,2643.3,2642.0,0.1283032]
[1724424674885,3.78435,2642.5,2642.0,0.1283032]
[1724424675071,3.78357,2643.1,2642.0,0.1283032]
[1724424675250,4.33363,2643.0,2642.0,0.1283032]
[1724424675449,3.78317,2643.3,2642.0,0.1283032]
[1724424675650,3.55,2643.2,2642.0,0.1283032]
[1724424675850,3.78387,2642.8,2642.0,0.1283032]
[1724424676049,4.33356,2643.1,2642.0,3.9132832]
[1724424676307,6.78291,2643.5,2642.0,0.1283032]
[1724424676474,3.78232,2643.9,2642.6,3.78404]
[1724424676651,3.78244,2643.8,2642.6,3.78404]
[1724424676846,3.78266,2643.7,2642.7,0.378404]
[1724424677051,9.45769,2644.3,2642.1,9.15237]
[1724424677052,3.78368,2643.0,2642.1,5.3676]
[1724424677300,3.78279,2643.6,2642.1,9.15241]
[1724424677301,3.78329,2643.2,2642.1,9.15241]
[1724424677451,3.78303,2643.4,2642.1,9.15241]
[1724424677650,0.3792,2643.9,2642.2,3.78471]
[1724424677892,3.78332,2643.2,2642.1,9.15246]
[1724424678195,3.78341,2643.2,2642.2,4.71268632]
[1724424678380,3.78382,2642.9,2642.0,0.1283032]
[1724424678564,5.5835,2643.3,2642.0,0.1283032]
[1724424678903,3.78397,2642.8,2642.0,0.1283032]
[1724424679071,4.16204,2643.6,2642.5,3.78418]
[1724424679249,4.16204,2643.6,2642.1,5.6442]
[1724424679250,3.78325,2643.3,2642.1,5.6442]
[1724424679453,4.16188,2643.7,2642.7,3.78388]
[1724424679665,3.78243,2643.8,2642.1,5.6442]
[1724424679990,3.78257,2643.7,2642.5,3.78426]
[1724424680292,3.78257,2643.7,2642.0,0.1283032]
[1724424680293,3.78441,2642.5,2642.0,0.1283032]
[1724424680798,3.7843,2642.5,2642.0,0.1283032]
[1724424681150,3.78406,2642.7,2642.0,0.1283032]
[1724424681377,5.3871,2643.3,2642.0,0.1283032]
[1724424681378,3.78429,2642.5,2642.0,0.1283032]
[1724424681550,4.33447,2642.4,2642.0,0.1283032]
[1724424681767,3.78486,2642.1,2642.0,0.1283032]
[1724424681979,7.56972,2642.1,2642.0,0.1283032]
[1724424682154,3.78486,2642.1,2642.0,0.1283032]
[1724424682355,4.33486,2642.1,2642.0,0.1283032]
[1724424682569,8.11972,2642.1,2642.0,0.1283032]
[1724424682778,0.3792,2642.8,2642.0,0.1283032]
[1724424682779,3.78485,2642.2,2642.0,0.1283032]
[1724424683082,5.7708,2643.9,2642.1,3.78479]
[1724424683278,3.78321,2643.3,2642.2,0.39130932]
[1724424683461,3.78353,2643.1,2642.2,4.17602932]
[1724424683684,3.78321,2643.3,2642.2,4.17600932]
[1724424683863,3.7834,2643.2,2642.2,0.39130932]
[1724424684207,3.78292,2643.5,2642.0,0.1283032]
[1724424684505,3.78338,2643.2,2642.3,3.78456]
[1724424684807,3.78347,2643.1,2642.1,3.78474]
[1724424685003,3.78358,2643.0,2642.1,3.78486]
[1724424685162,3.7835,2643.1,2642.0,0.1283032]
[1724424685363,3.78486,2642.1,2642.0,0.1283032]
[1724424685601,7.56972,2642.1,2642.0,0.1283032]
[1724424686021,8.11972,2642.1,2642.0,0.1283032]
[1724424686202,12.28378,2642.1,2642.0,0.1283032]
[1724424686508,3.78642,2641.1,2640.2,5.5617]
[1724424686722,3.78646,2641.0,2640.3,3.74146478]
[1724424686883,3.78642,2641.1,2640.3,3.74146478]
[1724424687397,6.78564,2641.6,2640.3,7.52886478]
[1724424687398,3.78589,2641.4,2640.3,7.52886478]
[1724424687735,11.36277,2640.2,2640.1,46.36423306]
[1724424687870,11.36277,2640.2,2640.1,38.23875306]
[1724424687871,21.06946,2640.2,2640.1,38.23875306]
[1724424688166,24.06946,2640.2,2640.1,30.4147248]
[1724424688369,34.75127197,2640.2,2640.1,11.35247695]
[1724424688628,7.5789,2638.9,2638.8,0.72308]
[1724424688768,3.78905,2639.2,2638.8,0.72308]
[1724424688966,3.78942,2639.0,2638.8,0.72308]
[1724424689221,7.5789,2638.9,2638.8,0.72308]
[1724424689433,10.5789,2638.9,2638.8,0.72308]
[1724424689709,3.78891,2639.3,2638.8,0.72308]
[1724424690004,3.78862,2639.5,2638.8,0.72308]
[1724424690368,3.78887,2639.4,2638.8,0.72308]
[1724424690568,0.55,2639.4,2638.8,0.72308]
[1724424690913,3.78889,2639.3,2638.8,0.72308]
[1724424691096,4.33874,2639.4,2638.8,0.72308]
[1724424691097,3.78945,2638.9,2638.8,0.72308]
[1724424691475,3.78931,2639.0,2638.8,0.72308]
[1724424691671,3.78859,2639.5,2638.8,0.72308]
[1724424691870,3.78865,2639.5,2638.8,0.72308]
[1724424692203,6.78829,2639.8,2638.8,1.361928]
[1724424692370,3.0,2640.1,2638.8,1.361928]
[1724424692706,3.78758,2640.3,2639.3,5.7985]
[1724424693085,3.78754,2640.3,2639.3,5.7985]
[1724424693269,7.57618,2639.9,2638.8,0.72308]
[1724424693499,3.78893,2639.3,2638.8,0.72308]
[1724424693703,3.78746,2640.3,2638.8,0.72308]
[1724424693704,3.78799,2640.0,2638.8,0.72308]
[1724424693918,5.00488918,2640.5,2638.8,1.375238]
[1724424693919,3.78851,2639.6,2638.8,1.375238]
[1724424694080,3.7882,2639.8,2638.8,5.164828]
[1724424694281,3.78834,2639.7,2638.8,1.375238]
[1724424694500,3.7882,2639.8,2638.8,1.375238]
[1724424694706,3.78716,2640.5,2638.8,1.375238]
[1724424694707,3.78808,2639.9,2638.8,1.375238]
[1724424695018,3.78807,2639.9,2638.8,0.72308]
[1724424695184,3.78807,2639.9,2638.9,3.78933]
[1724424695392,3.78821,2639.8,2638.8,0.72308]
[1724424695596,3.78794,2640.0,2638.8,0.72308]
[1724424695926,3.78762,2640.2,2638.8,0.72308]
[1724424695927,3.78763,2640.2,2639.0,3.78927]
[1724424696145,0.7,2641.0,2639.0,3.78927]
[1724424696146,3.78797,2640.0,2639.1,0.943847]
[1724424696269,3.78814,2639.9,2638.9,9.43865]
[1724424696468,1.0792,2641.0,2638.9,5.6492]
[1724424696469,3.78801,2640.0,2638.9,5.6492]
[1724424696698,3.78765,2640.2,2639.2,3.789]
[1724424696883,3.78765,2640.2,2639.1,3.78906]
[1724424697086,3.78765,2640.2,2639.2,4.167916]
[1724424697414,3.78765,2640.2,2639.3,5.3404]
[1724424697572,3.78745,2640.3,2639.3,5.3404]
[1724424697778,3.7877,2640.2,2639.3,9.12915]
[1724424697996,3.78774,2640.1,2639.3,5.3404]
[1724424698214,3.7877,2640.2,2639.4,0.5719306]
[1724424698477,3.78693,2640.7,2639.3,5.3404]
[1724424698681,3.78869,2639.5,2639.3,5.3404]
[1724424698906,3.78873,2639.4,2639.3,5.3404]
[1724424699120,3.78739,2640.4,2639.3,5.3404]
[1724424699304,3.78718,2640.5,2639.3,5.3404]
[1724424699615,5.67594677,2640.7,2639.3,5.3404]
[1724424699616,3.78809,2639.9,2639.3,5.3404]
[1724424699817,3.78795,2640.0,2639.3,4.41700751]
[1724424700019,3.78895,2639.3,2638.8,0.72308]
[1724424700191,3.7875,2640.3,2639.3,3.78887]
[1724424700391,3.78751,2640.3,2639.3,0.378887]
[1724424700723,4.53934916,2641.6,2640.6,3.78699]
[1724424700926,0.75374916,2641.6,2641.2,3.78606]
[1724424701085,0.75374916,2641.6,2641.2,3.78604]
[1724424701439,0.75374916,2641.6,2641.5,7.57144]
[1724424701982,1.50749832,2641.8,2641.1,3.7862]
[1724424702324,1.50749832,2641.8,2641.3,3.78594]
[1724424702497,1.50749832,2641.8,2641.6,3.78557]
[1724424702680,1.50749832,2641.8,2641.7,13.20708]
[1724424702882,1.50749832,2641.8,2641.7,16.99252]
[1724424703078,3.78399,2642.8,2641.8,5.6362]
[1724424703293,3.73953802,2642.9,2641.8,5.6362]
[1724424703516,3.78429,2642.5,2641.8,5.6362]
[1724424703718,3.78443,2642.5,2641.8,5.6362]
[1724424703988,3.78443,2642.5,2641.2,0.37862]
[1724424703989,3.78434,2642.5,2641.4,5.6362]
[1724424704183,3.78418,2642.6,2641.6,3.78555]
[1724424704561,3.73953802,2642.9,2642.1,3.78474]
[1724424704831,4.36279436,2643.7,2641.9,5.6012]
[1724424704832,0.7,2643.4,2641.9,5.6012]
[1724424705061,0.45805251,2643.7,2640.8,3.78667]
[1724424705062,3.78361,2643.0,2640.8,3.78667]
[1724424705349,3.78538,2641.8,2640.9,5.8323]
[1724424705488,3.78616,2641.2,2640.9,5.8323]
[1724424705725,3.78644,2641.0,2640.9,5.8323]
[1724424706018,3.78584,2641.5,2640.9,5.8323]
[1724424706339,4.33534,2641.8,2640.9,5.8323]
[1724424706656,0.55,2642.0,2640.9,5.8323]
[1724424706866,3.78605,2641.3,2640.9,5.8323]
[1724424707014,2.28880459,2641.7,2640.9,5.8323]
[1724424707355,3.0,2641.8,2640.9,5.8323]
[1724424707356,3.78601,2641.4,2640.9,5.8323]
[1724424707679,9.07420459,2641.8,2640.4,5.3615]
[1724424707680,3.78632,2641.1,2640.4,5.3615]
[1724424707884,1.90733716,2641.5,2640.4,5.89765]
[1724424708170,3.78658,2640.9,2640.4,5.3615]
[1724424708515,5.69306716,2641.5,2640.4,5.3615]
[1724424708832,3.78607,2641.3,2640.4,5.3615]
[1724424709047,0.55,2641.4,2640.4,5.3615]
[1724424709247,0.40740914,2641.3,2640.4,5.3615]
[1724424709420,0.59396418,2641.3,2641.0,5.7069]
[1724424709771,5.69253716,2641.9,2641.0,5.7069]
[1724424709772,3.7852,2641.9,2641.0,5.7069]
[1724424709935,3.78584,2641.5,2641.0,5.7069]
[1724424710133,0.59386377,2641.6,2641.0,5.7069]
[1724424710316,5.6990306,2641.9,2641.0,5.7069]
[1724424710317,3.7852,2641.9,2641.0,5.7069]
[1724424710535,3.7853,2641.8,2641.0,5.7069]
[1724424710713,3.7852,2641.9,2641.0,5.7069]
[1724424710986,4.9333812,2642.2,2641.2,3.78605]
[1724424711156,1.1486212,2642.2,2641.1,0.57069]
[1724424711393,3.78492,2642.1,2641.0,5.7069]
[1724424711537,3.78492,2642.1,2641.2,3.78604]
[1724424711737,1.14138347,2642.6,2642.3,3.78446]
[1724424711936,3.06483956,2643.3,2643.2,7.56658]
[1724424712137,3.06483956,2643.3,2643.1,5.3355]
[1724424712465,3.78206,2644.1,2642.3,5.3355]
[1724424712632,5.3551,2644.4,2642.3,5.3355]
[1724424712633,3.78272,2643.6,2642.3,5.3355]
[1724424713039,3.78288,2643.5,2642.6,3.78413]
[1724424713262,3.78288,2643.5,2642.5,3.78426]
[1724424713263,3.78286,2643.5,2642.5,3.78426]
[1724424713994,0.42792789,2644.3,2642.3,5.3355]
[1724424713995,3.78243,2643.8,2642.7,3.78399]
[1724424714165,3.7823,2643.9,2642.8,3.78382]
[1724424714376,1.91185796,2644.7,2643.1,3.78333]
[1724424714565,1.91185796,2644.7,2641.9,3.0]
[1724424714566,1.91185796,2645.1,2643.4,5.3813]
[1724424714764,3.7815,2644.5,2643.4,5.3813]
[1724424715090,3.7819,2644.2,2643.4,5.3813]
[1724424715387,3.78169,2644.4,2643.4,9.70241]
[1724424715593,3.78145,2644.5,2643.4,5.91943]